[Event "Slovakia Open Piestany-A 2022"]
[Site "Piestany"]
[Date "2022.07.16"]
[Round "7.3"]
[White "Niedbala, Bartlomiej"]
[Black "Moroni, Luca Jr"]
[Result "1-0"]
[ECO "C72"]
[WhiteElo "2381"]
[BlackElo "2584"]
[Annotator "ChessBase"]
[PlyCount "117"]
[EventDate "2022.07.12"]
[EventType "swiss"]
[EventCountry "SVK"]
[SourceTitle "playchess.com"]
[Source "ChessBase"]
[SourceQuality "1"]
[TimeControl "40/5400+30:1800+30"]

1. e4 {[%emt 0:06:18]} e5 {[%emt 0:04:53]} 2. Nf3 {[%emt 0:01:18]} Nc6 {[%emt 0:00:54]} 3. Bb5 {[%emt 0:00:08]} a6 {[%emt 0:00:03]} 4. Ba4 {[%emt 0:00:05]} Nf6 {[%emt 0:00:04]} 5. O-O {[%emt 0:00:06]} d6 {[%emt 0:00:02]} 6. Re1 {[%emt 0:00:08]} Bd7 {[%emt 0:00:03]} 7. c4 {[%emt 0:00:09]} Be7 {[%emt 0:00:32]} 8. Bxc6 {[%emt 0:04:25]} Bxc6 {[%emt 0:02:55]} 9. Nc3 {[%emt 0:00:16]} O-O {[%emt 0:00:05]} 10. d4 {[%emt 0:00:30]} exd4 {[%emt 0:00:37]} 11. Nxd4 {[%emt 0:01:56]} Nd7 {[%emt 0:01:18]} 12. b3 {[%emt 0:08:14]} Bf6 {[%emt 0:02:36]} 13. Be3 {[%emt 0:08:13]} Re8 {[%emt 0:08:11]} 14. f3 {[%emt 0:02:14]} Ne5 {[%emt 0:07:39]} 15. a4 {[%emt 0:05:08]} Ng6 {[%emt 0:03:07]} 16. Qd2 {[%emt 0:04:50]} Be5 {[%emt 0:03:23]} 17. Qf2 {[%emt 0:28:00]} Nf4 {[%emt 0:05:36]} 18. Rad1 {[%emt 0:00:14]} Bd7 {[%emt 0:07:32]} 19. Kh1 {[%emt 0:04:53]} c5 {[%emt 0:10:29]} 20. Nde2 {[%emt 0:00:22]} Nxe2 {[%emt 0:00:24]} 21. Nxe2 {[%emt 0:00:03]} b5 {[%emt 0:02:24]} 22. axb5 {[%emt 0:04:39]} axb5 {[%emt 0:00:29]} 23. Bf4 {[%emt 0:01:26]} Qb8 {[%emt 0:07:22]} 24. Bxe5 {[%emt 0:01:08]} Rxe5 {[%emt 0:00:02]} 25. Nf4 {[%emt 0:01:36]} bxc4 {[%emt 0:09:49]} 26. bxc4 {[%emt 0:00:42]} Be6 {[%emt 0:00:18]} 27. Nd3 {[%emt 0:06:50]} Rh5 {[%emt 0:00:23]} 28. Nf4 {[%emt 0:00:17]} Rh6 {[%emt 0:00:09]} 29. Nxe6 {[%emt 0:01:11]} Rxe6 {[%emt 0:00:51]} 30. Qd2 {[%emt 0:02:36]} h6 {[%emt 0:01:44]} 31. Ra1 {[%emt 0:02:24]} Rxa1 {[%emt 0:01:03]} 32. Rxa1 {[%emt 0:00:02]} Qb3 {[%emt 0:00:07]} 33. Rc1 {[%emt 0:00:28]} Qa4 {[%emt 0:00:56]} 34. h3 {[%emt 0:01:57]} Qa6 {[%emt 0:00:13]} 35. Qc3 {[%emt 0:02:01]} Re8 {[%emt 0:00:22]} 36. Ra1 {[%emt 0:00:04]} Qb6 {[%emt 0:00:09]} 37. Rd1 {[%emt 0:00:28]} Qa6 {[%emt 0:01:12]} 38. Ra1 {[%emt 0:00:25]} Qc8 {[%emt 0:00:01]} 39. Qd3 {[%emt 0:00:49]} Qe6 {[%emt 0:00:51]} 40. Rd1 {[%emt 0:01:31]} Ra8 {[%emt 0:02:36]} 41. Qd5 {[%emt 0:14:53]} Ra6 {[%emt 0:04:09]} 42. Qd3 {[%emt 0:11:57]} Qe5 {[%emt 0:02:25]} 43. Qb1 {[%emt 0:01:25]} g6 {[%emt 0:03:19]} 44. Qb3 {[%emt 0:01:56]} h5 {[%emt 0:00:38]} 45. Qb1 {[%emt 0:03:25]} h4 {[%emt 0:01:16]} 46. Qb5 {[%emt 0:01:15]} Ra8 {[%emt 0:02:30]} 47. Qb7 {[%emt 0:00:14]} Ra1 {[%emt 0:00:58]} 48. Rxa1 {[%emt 0:00:02]} Qxa1+ {[%emt 0:00:02]} 49. Kh2 {[%emt 0:00:03]} Qe5+ {[%emt 0:00:03]} 50. Kh1 {[%emt 0:00:25]} Kg7 {[%emt 0:01:06]} 51. Qd7 {[%emt 0:00:56]} Qd4 {[%emt 0:00:42]} 52. Qa4 {[%emt 0:01:08]} Kf6 {[%emt 0:01:25]} 53. Qd7 {[%emt 0:00:33]} Qa1+ {[%emt 0:02:34]} 54. Kh2 {[%emt 0:00:05]} Qe5+ {[%emt 0:00:02]} 55. Kh1 {[%emt 0:00:04]} Kg7 {[%emt 0:00:10]} 56. Qc6 {[%emt 0:00:34]} Kh6 {[%emt 0:02:12]} 57. Qd7 {[%emt 0:00:57]} Qe6 {[%emt 0:01:22]} 58. Qd8 {[%emt 0:00:43]} Kh5 {[%emt 0:00:01]} 59. f4 {[%emt 0:00:39]} 1-0

[Event "Slovakia Open Piestany-A 2022"]
[Site "Piestany"]
[Date "2022.07.16"]
[Round "7.4"]
[White "Kozak, Antoni"]
[Black "Czerw, Dawid"]
[Result "1-0"]
[ECO "D77"]
[WhiteElo "2475"]
[BlackElo "2391"]
[Annotator "ChessBase"]
[PlyCount "122"]
[EventDate "2022.07.12"]
[EventType "swiss"]
[EventCountry "SVK"]
[SourceTitle "playchess.com"]
[Source "ChessBase"]
[SourceQuality "1"]
[TimeControl "40/5400+30:1800+30"]

1. Nf3 {[%emt 0:06:01]} Nf6 {[%emt 0:00:03]} 2. c4 {[%emt 0:00:03]} e6 {[%emt 0:00:05]} 3. b3 {[%emt 0:00:12]} b6 {[%emt 0:00:38]} 4. g3 {[%emt 0:04:32]} Bb7 {[%emt 0:03:44]} 5. Bg2 {[%emt 0:00:14]} g6 {[%emt 0:00:18]} 6. O-O {[%emt 0:12:35]} Bg7 {[%emt 0:00:52]} 7. Bb2 {[%emt 0:00:07]} O-O {[%emt 0:01:02]} 8. d4 {[%emt 0:00:21]} d5 {[%emt 0:02:21]} 9. cxd5 {[%emt 0:05:01]} Bxd5 {[%emt 0:19:46]} 10. Nc3 {[%emt 0:04:16]} Bb7 {[%emt 0:00:07]} 11. Qc2 {[%emt 0:02:06]} Nbd7 {[%emt 0:03:19]} 12. Rad1 {[%emt 0:11:14]} Qe7 {[%emt 0:09:12]} 13. e4 {[%emt 0:04:30]} c5 {[%emt 0:02:56]} 14. d5 {[%emt 0:02:22]} e5 {[%emt 0:05:08]} 15. Nd2 {[%emt 0:07:00]} Ne8 {[%emt 0:04:03]} 16. Rfe1 {[%emt 0:02:28]} Nd6 {[%emt 0:01:32]} 17. Nc4 {[%emt 0:04:00]} Ba6 {[%emt 0:11:26]} 18. Nxd6 {[%emt 0:00:54]} Qxd6 {[%emt 0:00:06]} 19. Bh3 {[%emt 0:01:52]} Rac8 {[%emt 0:02:36]} 20. a4 {[%emt 0:01:22]} Rc7 {[%emt 0:02:51]} 21. Nb5 {[%emt 0:03:04]} Bxb5 {[%emt 0:02:13]} 22. axb5 {[%emt 0:00:02]} Rd8 {[%emt 0:05:09]} 23. Ra1 {[%emt 0:01:58]} Nf6 {[%emt 0:00:35]} 24. f4 {[%emt 0:12:32]} Ne8 {[%emt 0:00:41]} 25. Rad1 {[%emt 0:00:07]} Qe7 {[%emt 0:01:50]} 26. Qc3 {[%emt 0:00:49]} f6 {[%emt 0:08:20]} 27. Be6+ {[%emt 0:01:49]} Kh8 {[%emt 0:00:10]} 28. fxe5 {[%emt 0:00:29]} fxe5 {[%emt 0:00:03]} 29. Rf1 {[%emt 0:00:05]} Qd6 {[%emt 0:04:25]} 30. Rf3 {[%emt 0:03:02]} Re7 {[%emt 0:01:51]} 31. Bh3 {[%emt 0:01:14]} Nc7 {[%emt 0:01:02]} 32. Qd3 {[%emt 0:00:56]} Rf8 {[%emt 0:00:56]} 33. Rxf8+ {[%emt 0:00:08]} Bxf8 {[%emt 0:00:04]} 34. Rf1 {[%emt 0:01:34]} Bg7 {[%emt 0:00:34]} 35. Rf3 {[%emt 0:01:38]} Kg8 {[%emt 0:00:55]} 36. Qf1 {[%emt 0:00:39]} Re8 {[%emt 0:00:39]} 37. Qc4 {[%emt 0:05:32]} Ra8 {[%emt 0:04:21]} 38. Rf1 {[%emt 0:01:03]} a5 {[%emt 0:00:50]} 39. bxa6 {[%emt 0:00:05]} b5 {[%emt 0:01:07]} 40. Qe2 {[%emt 0:01:25]} Rxa6 {[%emt 0:01:44]} 41. Bc1 {[%emt 0:05:35]} Ra1 {[%emt 0:11:25]} 42. Qb2 {[%emt 0:02:55]} Ra8 {[%emt 0:02:14]} 43. Be3 {[%emt 0:00:30]} Na6 {[%emt 0:09:51]} 44. Be6+ {[%emt 0:08:49]} Kh8 {[%emt 0:00:05]} 45. Rf7 {[%emt 0:00:49]} Nb4 {[%emt 0:04:11]} 46. Rd7 {[%emt 0:03:21]} Qa6 {[%emt 0:01:01]} 47. Qf2 {[%emt 0:02:38]} Qa1+ {[%emt 0:02:25]} 48. Kg2 {[%emt 0:00:45]} Nd3 {[%emt 0:00:17]} 49. Qf7 {[%emt 0:01:09]} Ra2+ {[%emt 0:00:33]} 50. Kh3 {[%emt 0:00:04]} Nf4+ {[%emt 0:00:15]} 51. Qxf4 {[%emt 0:03:32]} exf4 {[%emt 0:00:04]} 52. Rd8+ {[%emt 0:00:08]} Bf8 {[%emt 0:00:04]} 53. Rxf8+ {[%emt 0:00:03]} Kg7 {[%emt 0:00:03]} 54. Rf7+ {[%emt 0:01:01]} Kh6 {[%emt 0:02:11]} 55. Rxf4 {[%emt 0:00:32]} g5 {[%emt 0:00:19]} 56. Rf5 {[%emt 0:01:17]} Qh1 {[%emt 0:00:25]} 57. Rxg5 {[%emt 0:02:03]} Rxh2+ {[%emt 0:01:37]} 58. Kg4 {[%emt 0:00:01]} Qxe4+ {[%emt 0:00:27]} 59. Bf4 {[%emt 0:00:02]} Qe2+ {[%emt 0:01:22]} 60. Kf5 {[%emt 0:00:04]} Rh5 {[%emt 0:01:18]} 61. Rxh5+ {[%emt 0:00:12]} Kxh5 {[%emt 0:00:19]} 1-0

[Event "Slovakia Open Piestany-A 2022"]
[Site "Piestany"]
[Date "2022.07.16"]
[Round "7.5"]
[White "Lewtak, Damian"]
[Black "Moksh Amit Doshi"]
[Result "1/2-1/2"]
[ECO "B51"]
[WhiteElo "2397"]
[BlackElo "2409"]
[Annotator "ChessBase"]
[PlyCount "23"]
[EventDate "2022.07.12"]
[EventType "swiss"]
[EventCountry "SVK"]
[SourceTitle "playchess.com"]
[Source "ChessBase"]
[SourceQuality "1"]
[TimeControl "40/5400+30:1800+30"]

1. Nf3 {[%emt 0:02:02]} c5 {[%emt 0:01:25]} 2. e4 {[%emt 0:00:42]} d6 {[%emt 0:00:06]} 3. Bb5+ {[%emt 0:00:05]} Nd7 {[%emt 0:00:08]} 4. O-O {[%emt 0:00:43]} Ngf6 {[%emt 0:02:12]} 5. Re1 {[%emt 0:00:25]} a6 {[%emt 0:00:36]} 6. Bxd7+ {[%emt 0:01:03]} Bxd7 {[%emt 0:00:17]} 7. d4 {[%emt 0:00:11]} cxd4 {[%emt 0:02:33]} 8. Qxd4 {[%emt 0:00:06]} g6 {[%emt 0:06:18]} 9. e5 {[%emt 0:15:43]} dxe5 {[%emt 0:02:23]} 10. Qxe5 {[%emt 0:00:08]} Bg7 {[%emt 0:01:18]} 11. Bg5 {[%emt 0:00:23]} O-O {[%emt 0:09:09]} 12. Nc3 {[%emt 0:02:07]} 1/2-1/2

[Event "Slovakia Open Piestany-A 2022"]
[Site "Piestany"]
[Date "2022.07.16"]
[Round "7.6"]
[White "Kostolansky, Sebastian Lukas"]
[Black "Demchenko, Anton"]
[Result "0-1"]
[ECO "B51"]
[WhiteElo "2406"]
[BlackElo "2653"]
[Annotator "ChessBase"]
[PlyCount "114"]
[EventDate "2022.07.12"]
[EventType "swiss"]
[EventCountry "SVK"]
[SourceTitle "playchess.com"]
[Source "ChessBase"]
[SourceQuality "1"]
[TimeControl "40/5400+30:1800+30"]

1. e4 {[%emt 0:00:04]} c5 {[%emt 0:00:06]} 2. Nf3 {[%emt 0:00:13]} d6 {[%emt 0:00:05]} 3. Bb5+ {[%emt 0:00:45]} Nd7 {[%emt 0:00:06]} 4. O-O {[%emt 0:02:02]} a6 {[%emt 0:00:29]} 5. Bd3 {[%emt 0:00:08]} Ngf6 {[%emt 0:00:15]} 6. Re1 {[%emt 0:00:13]} e5 {[%emt 0:00:20]} 7. c3 {[%emt 0:01:21]} Be7 {[%emt 0:00:11]} 8. Bc2 {[%emt 0:01:05]} b5 {[%emt 0:00:23]} 9. d4 {[%emt 0:01:44]} O-O {[%emt 0:00:19]} 10. Nbd2 {[%emt 0:03:53]} Re8 {[%emt 0:00:09]} 11. b3 {[%emt 0:05:35]} Bf8 {[%emt 0:04:11]} 12. Bb2 {[%emt 0:06:56]} cxd4 {[%emt 0:05:16]} 13. cxd4 {[%emt 0:00:06]} exd4 {[%emt 0:00:08]} 14. a4 {[%emt 0:14:30]} b4 {[%emt 0:17:54]} 15. Nc4 {[%emt 0:17:30]} Ne5 {[%emt 0:10:11]} 16. Qxd4 {[%emt 0:00:06]} Nxf3+ {[%emt 0:05:48]} 17. gxf3 {[%emt 0:00:07]} Be6 {[%emt 0:00:03]} 18. Ne3 {[%emt 0:25:14]} Nh5 {[%emt 0:07:23]} 19. Kh1 {[%emt 0:00:05]} Qh4 {[%emt 0:10:02]} 20. Rg1 {[%emt 0:02:28]} Qf4 {[%emt 0:00:23]} 21. Ng2 {[%emt 0:07:04]} Qe5 {[%emt 0:06:08]} 22. Qxe5 {[%emt 0:03:10]} dxe5 {[%emt 0:00:02]} 23. Bxe5 {[%emt 0:00:10]} Bxb3 {[%emt 0:01:23]} 24. Bxb3 {[%emt 0:00:19]} Rxe5 {[%emt 0:00:04]} 25. Ne3 {[%emt 0:00:43]} Rc5 {[%emt 0:01:15]} 26. Nd5 {[%emt 0:02:49]} a5 {[%emt 0:02:53]} 27. Rad1 {[%emt 0:01:40]} g6 {[%emt 0:05:37]} 28. f4 {[%emt 0:01:23]} Re8 {[%emt 0:02:47]} 29. f5 {[%emt 0:01:29]} Kg7 {[%emt 0:05:54]} 30. fxg6 {[%emt 0:00:22]} hxg6 {[%emt 0:00:24]} 31. Rd4 {[%emt 0:01:24]} Rcc8 {[%emt 0:06:12]} 32. Rf1 {[%emt 0:00:12]} Nf6 {[%emt 0:06:16]} 33. Nxf6 {[%emt 0:00:49]} Kxf6 {[%emt 0:00:01]} 34. Rd7 {[%emt 0:00:54]} Re7 {[%emt 0:00:01]} 35. Rxe7 {[%emt 0:00:54]} Kxe7 {[%emt 0:03:58]} 36. f4 {[%emt 0:00:12]} Rc3 {[%emt 0:00:11]} 37. Bd5 {[%emt 0:00:43]} Bg7 {[%emt 0:00:55]} 38. e5 {[%emt 0:00:33]} Rd3 {[%emt 0:00:19]} 39. Bc4 {[%emt 0:00:30]} Rd2 {[%emt 0:00:48]} 40. h4 {[%emt 0:00:34]} Rd4 {[%emt 0:00:14]} 41. Ba2 {[%emt 0:09:46]} Bh6 {[%emt 0:03:17]} 42. f5 {[%emt 0:13:23]} Rxh4+ {[%emt 0:00:11]} 43. Kg1 {[%emt 0:00:23]} Be3+ {[%emt 0:05:11]} 44. Kg2 {[%emt 0:00:05]} Bf4 {[%emt 0:00:03]} 45. fxg6 {[%emt 0:02:43]} fxg6 {[%emt 0:00:09]} 46. Bb3 {[%emt 0:00:09]} Rh2+ {[%emt 0:05:29]} 47. Kg1 {[%emt 0:00:29]} Bxe5 {[%emt 0:02:25]} 48. Rf7+ {[%emt 0:01:37]} Kd6 {[%emt 0:00:12]} 49. Rb7 {[%emt 0:00:11]} Rb2 {[%emt 0:00:45]} 50. Bf7 {[%emt 0:00:28]} Bd4+ {[%emt 0:03:12]} 51. Kh1 {[%emt 0:00:39]} g5 {[%emt 0:06:29]} 52. Rb5 {[%emt 0:00:23]} Bc5 {[%emt 0:02:39]} 53. Rxa5 {[%emt 0:04:06]} g4 {[%emt 0:00:05]} 54. Ra6+ {[%emt 0:00:21]} Ke7 {[%emt 0:00:06]} 55. Rc6 {[%emt 0:01:53]} Bd4 {[%emt 0:02:20]} 56. Bg6 {[%emt 0:01:20]} b3 {[%emt 0:00:37]} 57. Rc4 {[%emt 0:00:32]} Rd2 {[%emt 0:00:13]} 0-1

[Event "Slovakia Open Piestany-A 2022"]
[Site "Piestany"]
[Date "2022.07.16"]
[Round "7.7"]
[White "Gretarsson, Helgi Ass"]
[Black "Samunenkov, Ihor"]
[Result "1/2-1/2"]
[ECO "D45"]
[WhiteElo "2472"]
[BlackElo "2448"]
[Annotator "ChessBase"]
[PlyCount "56"]
[EventDate "2022.07.12"]
[EventType "swiss"]
[EventCountry "SVK"]
[SourceTitle "playchess.com"]
[Source "ChessBase"]
[SourceQuality "1"]
[TimeControl "40/5400+30:1800+30"]

1. d4 {[%emt 0:00:03]} d5 {[%emt 0:00:15]} 2. c4 {[%emt 0:00:07]} e6 {[%emt 0:00:09]} 3. Nc3 {[%emt 0:00:11]} c6 {[%emt 0:00:12]} 4. e3 {[%emt 0:00:11]} Nf6 {[%emt 0:00:22]} 5. Nf3 {[%emt 0:00:49]} Nbd7 {[%emt 0:00:20]} 6. Qc2 {[%emt 0:00:58]} Bd6 {[%emt 0:00:11]} 7. b3 {[%emt 0:00:48]} O-O {[%emt 0:00:32]} 8. Be2 {[%emt 0:00:06]} e5 {[%emt 0:00:48]} 9. cxd5 {[%emt 0:01:41]} cxd5 {[%emt 0:00:11]} 10. Nb5 {[%emt 0:01:14]} Bb4+ {[%emt 0:00:13]} 11. Bd2 {[%emt 0:00:07]} Bxd2+ {[%emt 0:00:06]} 12. Nxd2 {[%emt 0:00:06]} a6 {[%emt 0:00:24]} 13. dxe5 {[%emt 0:01:44]} Nxe5 {[%emt 0:00:06]} 14. Nd4 {[%emt 0:00:34]} Bg4 {[%emt 0:00:45]} 15. O-O {[%emt 0:42:55]} Rc8 {[%emt 0:07:30]} 16. Qb2 {[%emt 0:00:11]} Ne4 {[%emt 0:01:51]} 17. f3 {[%emt 0:09:09]} Nxd2 {[%emt 0:05:01]} 18. Qxd2 {[%emt 0:00:13]} Bd7 {[%emt 0:00:33]} 19. Rac1 {[%emt 0:00:20]} Qb6 {[%emt 0:04:17]} 20. Rxc8 {[%emt 0:05:46]} Rxc8 {[%emt 0:01:32]} 21. Rc1 {[%emt 0:00:04]} Rxc1+ {[%emt 0:01:16]} 22. Qxc1 {[%emt 0:00:02]} Nc6 {[%emt 0:00:34]} 23. Qc3 {[%emt 0:06:07]} Nxd4 {[%emt 0:01:33]} 24. Qxd4 {[%emt 0:04:35]} Qxd4 {[%emt 0:05:27]} 25. exd4 {[%emt 0:01:15]} a5 {[%emt 0:00:30]} 26. a3 {[%emt 0:00:30]} g5 {[%emt 0:01:12]} 27. Bd3 {[%emt 0:00:54]} h6 {[%emt 0:02:15]} 28. Kf2 {[%emt 0:00:25]} f6 {[%emt 0:00:31]} 1/2-1/2

[Event "Slovakia Open Piestany-A 2022"]
[Site "Piestany"]
[Date "2022.07.16"]
[Round "7.8"]
[White "Krasenkow, Michal"]
[Black "Bhambure, Shantanu"]
[Result "1-0"]
[ECO "E43"]
[WhiteElo "2569"]
[BlackElo "2320"]
[Annotator "ChessBase"]
[PlyCount "91"]
[EventDate "2022.07.12"]
[EventType "swiss"]
[EventCountry "SVK"]
[SourceTitle "playchess.com"]
[Source "ChessBase"]
[SourceQuality "1"]
[TimeControl "40/5400+30:1800+30"]

1. d4 {[%emt 0:00:05]} Nf6 {[%emt 0:00:06]} 2. c4 {[%emt 0:00:06]} e6 {[%emt 0:00:03]} 3. Nc3 {[%emt 0:00:06]} Bb4 {[%emt 0:00:12]} 4. e3 {[%emt 0:00:06]} b6 {[%emt 0:01:21]} 5. Bd3 {[%emt 0:00:28]} Bb7 {[%emt 0:00:06]} 6. Nf3 {[%emt 0:00:05]} O-O {[%emt 0:00:42]} 7. O-O {[%emt 0:00:04]} c5 {[%emt 0:02:07]} 8. Bd2 {[%emt 0:05:29]} cxd4 {[%emt 0:03:07]} 9. exd4 {[%emt 0:00:07]} d5 {[%emt 0:08:59]} 10. cxd5 {[%emt 0:01:31]} exd5 {[%emt 0:05:32]} 11. Ne5 {[%emt 0:07:42]} Be7 {[%emt 0:13:17]} 12. Qf3 {[%emt 0:04:34]} Nc6 {[%emt 0:01:00]} 13. Nxc6 {[%emt 0:02:02]} Bxc6 {[%emt 0:00:06]} 14. Rfe1 {[%emt 0:00:15]} Re8 {[%emt 0:03:47]} 15. Bf4 {[%emt 0:09:10]} Qd7 {[%emt 0:04:30]} 16. h3 {[%emt 0:03:07]} b5 {[%emt 0:01:45]} 17. Be5 {[%emt 0:05:17]} b4 {[%emt 0:02:54]} 18. Nd1 {[%emt 0:04:45]} Ne4 {[%emt 0:04:38]} 19. Ne3 {[%emt 0:00:38]} f6 {[%emt 0:14:38]} 20. Bf4 {[%emt 0:02:49]} f5 {[%emt 0:11:31]} 21. Be5 {[%emt 0:03:37]} Rf8 {[%emt 0:00:33]} 22. Rac1 {[%emt 0:03:03]} Rac8 {[%emt 0:09:42]} 23. Rc2 {[%emt 0:03:40]} Bb7 {[%emt 0:01:36]} 24. Rec1 {[%emt 0:00:44]} Rxc2 {[%emt 0:00:21]} 25. Rxc2 {[%emt 0:00:07]} Bd8 {[%emt 0:00:17]} 26. Qe2 {[%emt 0:05:47]} Bb6 {[%emt 0:02:13]} 27. Qe1 {[%emt 0:06:19]} a5 {[%emt 0:01:03]} 28. f3 {[%emt 0:00:10]} Nd6 {[%emt 0:02:44]} 29. Qg3 {[%emt 0:01:22]} Ne8 {[%emt 0:00:07]} 30. Qf4 {[%emt 0:03:39]} g6 {[%emt 0:00:34]} 31. Qh6 {[%emt 0:08:19]} Ng7 {[%emt 0:03:03]} 32. Bb5 {[%emt 0:00:30]} Qf7 {[%emt 0:01:52]} 33. Bc6 {[%emt 0:13:43]} Bxc6 {[%emt 0:00:22]} 34. Rxc6 {[%emt 0:00:07]} Bd8 {[%emt 0:00:27]} 35. Nxd5 {[%emt 0:00:13]} Ne8 {[%emt 0:00:39]} 36. Nf4 {[%emt 0:01:06]} Bf6 {[%emt 0:00:18]} 37. Ne6 {[%emt 0:02:45]} Bxe5 {[%emt 0:00:18]} 38. dxe5 {[%emt 0:00:10]} Qa7+ {[%emt 0:00:08]} 39. Kh2 {[%emt 0:00:25]} Rf7 {[%emt 0:00:05]} 40. Qf4 {[%emt 0:00:14]} Re7 {[%emt 0:00:33]} 41. Qc4 {[%emt 0:30:12]} Kh8 {[%emt 0:30:12]} 42. f4 {[%emt 0:00:57]} Qd7 {[%emt 0:00:14]} 43. Nd4 {[%emt 0:00:30]} Ng7 {[%emt 0:00:16]} 44. Rc8+ {[%emt 0:02:47]} Ne8 {[%emt 0:00:06]} 45. Ra8 {[%emt 0:01:11]} Qb7 {[%emt 0:00:22]} 46. Qc6 {[%emt 0:00:20]} 1-0

[Event "Slovakia Open Piestany-A 2022"]
[Site "Piestany"]
[Date "2022.07.16"]
[Round "7.9"]
[White "Savitha Shri B"]
[Black "Sahidi, Samir"]
[Result "1/2-1/2"]
[ECO "B90"]
[WhiteElo "2278"]
[BlackElo "2462"]
[Annotator "ChessBase"]
[PlyCount "89"]
[EventDate "2022.07.12"]
[EventType "swiss"]
[EventCountry "SVK"]
[SourceTitle "playchess.com"]
[Source "ChessBase"]
[SourceQuality "1"]
[TimeControl "40/5400+30:1800+30"]

1. e4 {[%emt 0:00:33]} c5 {[%emt 0:00:41]} 2. Nf3 {[%emt 0:00:18]} d6 {[%emt 0:01:35]} 3. d4 {[%emt 0:00:32]} cxd4 {[%emt 0:00:08]} 4. Nxd4 {[%emt 0:02:38]} Nf6 {[%emt 0:00:11]} 5. Nc3 {[%emt 0:00:05]} a6 {[%emt 0:00:30]} 6. Be3 {[%emt 0:00:38]} e5 {[%emt 0:03:40]} 7. Nb3 {[%emt 0:00:06]} Be7 {[%emt 0:00:15]} 8. h3 {[%emt 0:02:44]} Be6 {[%emt 0:01:42]} 9. Qf3 {[%emt 0:00:06]} Nbd7 {[%emt 0:01:56]} 10. O-O-O {[%emt 0:02:17]} Rc8 {[%emt 0:05:16]} 11. g4 {[%emt 0:11:37]} h6 {[%emt 0:00:45]} 12. Rg1 {[%emt 0:07:25]} Nh7 {[%emt 0:05:57]} 13. Kb1 {[%emt 0:09:43]} b5 {[%emt 0:03:09]} 14. Nd5 {[%emt 0:01:59]} O-O {[%emt 0:05:47]} 15. Nxe7+ {[%emt 0:06:32]} Qxe7 {[%emt 0:00:11]} 16. h4 {[%emt 0:00:22]} f6 {[%emt 0:01:49]} 17. Be2 {[%emt 0:03:12]} Nc5 {[%emt 0:02:13]} 18. Rd2 {[%emt 0:05:28]} Rfd8 {[%emt 0:02:16]} 19. Rgd1 {[%emt 0:00:31]} Na4 {[%emt 0:00:40]} 20. Qg3 {[%emt 0:02:10]} Bc4 {[%emt 0:09:45]} 21. Bf3 {[%emt 0:07:05]} g5 {[%emt 0:03:57]} 22. Qh3 {[%emt 0:07:08]} Rd7 {[%emt 0:06:20]} 23. hxg5 {[%emt 0:05:58]} hxg5 {[%emt 0:00:28]} 24. Qh6 {[%emt 0:01:13]} Nf8 {[%emt 0:04:04]} 25. Rh1 {[%emt 0:01:41]} Kf7 {[%emt 0:06:21]} 26. Qh5+ {[%emt 0:02:23]} Ke6 {[%emt 0:00:37]} 27. Rhd1 {[%emt 0:03:21]} Qd8 {[%emt 0:05:01]} 28. Qh1 {[%emt 0:03:18]} Ng6 {[%emt 0:07:22]} 29. Be2 {[%emt 0:02:38]} Qh8 {[%emt 0:07:34]} 30. Qf1 {[%emt 0:01:44]} Qg8 {[%emt 0:03:41]} 31. Na5 {[%emt 0:05:28]} Ke7 {[%emt 0:01:10]} 32. Bxc4 {[%emt 0:00:42]} bxc4 {[%emt 0:00:06]} 33. c3 {[%emt 0:00:13]} Nf4 {[%emt 0:02:02]} 34. Ka1 {[%emt 0:01:06]} Nc5 {[%emt 0:02:51]} 35. Qxc4 {[%emt 0:02:26]} Qxc4 {[%emt 0:00:10]} 36. Nxc4 {[%emt 0:00:03]} Nxe4 {[%emt 0:00:10]} 37. Nb6 {[%emt 0:00:06]} Rh8 {[%emt 0:03:17]} 38. Bxf4 {[%emt 0:01:31]} gxf4 {[%emt 0:02:48]} 39. Re2 {[%emt 0:00:08]} Ng5 {[%emt 0:00:19]} 40. Nxd7 {[%emt 0:00:40]} Kxd7 {[%emt 0:00:06]} 41. Red2 {[%emt 0:31:44]} Ne4 {[%emt 0:32:23]} 42. Re2 {[%emt 0:01:00]} Ng5 {[%emt 0:00:00]} 43. Red2 {[%emt 0:00:00]} Ne4 {[%emt 0:00:00]} 44. Re2 {[%emt 0:00:00]} Ng5 {[%emt 0:00:00]} 45. Red2 {[%emt 0:00:00]} 1/2-1/2

[Event "Slovakia Open Piestany-A 2022"]
[Site "Piestany"]
[Date "2022.07.16"]
[Round "7.10"]
[White "Stefansson, Vignir Vatnar"]
[Black "Mullick, Raahil"]
[Result "1/2-1/2"]
[ECO "C67"]
[WhiteElo "2461"]
[BlackElo "2237"]
[Annotator "ChessBase"]
[PlyCount "80"]
[EventDate "2022.07.12"]
[EventType "swiss"]
[EventCountry "SVK"]
[SourceTitle "playchess.com"]
[Source "ChessBase"]
[SourceQuality "1"]
[TimeControl "40/5400+30:1800+30"]

1. e4 {[%emt 0:07:31]} e5 {[%emt 0:00:24]} 2. Nf3 {[%emt 0:00:18]} Nc6 {[%emt 0:00:06]} 3. Bb5 {[%emt 0:00:07]} Nf6 {[%emt 0:00:05]} 4. O-O {[%emt 0:00:26]} Nxe4 {[%emt 0:00:08]} 5. d4 {[%emt 0:00:06]} Nd6 {[%emt 0:00:05]} 6. Bxc6 {[%emt 0:00:04]} dxc6 {[%emt 0:00:05]} 7. dxe5 {[%emt 0:00:06]} Nf5 {[%emt 0:00:04]} 8. Qxd8+ {[%emt 0:00:08]} Kxd8 {[%emt 0:00:06]} 9. Rd1+ {[%emt 0:00:12]} Ke8 {[%emt 0:00:06]} 10. Nc3 {[%emt 0:00:07]} Bb4 {[%emt 0:03:38]} 11. Ne2 {[%emt 0:10:40]} Ne7 {[%emt 0:06:48]} 12. h3 {[%emt 0:08:48]} Bf5 {[%emt 0:05:23]} 13. Nfd4 {[%emt 0:00:29]} Rd8 {[%emt 0:01:17]} 14. Bg5 {[%emt 0:03:45]} Bc8 {[%emt 0:01:19]} 15. a3 {[%emt 0:02:47]} Bc5 {[%emt 0:00:17]} 16. b4 {[%emt 0:01:10]} Bxd4 {[%emt 0:03:30]} 17. Nxd4 {[%emt 0:01:16]} h6 {[%emt 0:00:08]} 18. Bxe7 {[%emt 0:02:26]} Kxe7 {[%emt 0:00:04]} 19. f4 {[%emt 0:00:17]} h5 {[%emt 0:03:00]} 20. Kf2 {[%emt 0:02:26]} f6 {[%emt 0:04:21]} 21. Rd3 {[%emt 0:02:13]} fxe5 {[%emt 0:02:23]} 22. Re1 {[%emt 0:01:25]} Rd5 {[%emt 0:08:27]} 23. c4 {[%emt 0:11:24]} Rd6 {[%emt 0:00:21]} 24. Rxe5+ {[%emt 0:00:59]} Kf6 {[%emt 0:00:17]} 25. Ke3 {[%emt 0:03:09]} g6 {[%emt 0:00:54]} 26. Nf3 {[%emt 0:01:43]} Bf5 {[%emt 0:01:11]} 27. Rd4 {[%emt 0:01:05]} Rhd8 {[%emt 0:00:11]} 28. c5 {[%emt 0:01:47]} Rd5 {[%emt 0:02:00]} 29. Rdxd5 {[%emt 0:01:38]} cxd5 {[%emt 0:00:24]} 30. Kd4 {[%emt 0:01:53]} c6 {[%emt 0:03:36]} 31. Nh2 {[%emt 0:01:38]} Rh8 {[%emt 0:04:41]} 32. Nf1 {[%emt 0:00:30]} a5 {[%emt 0:02:28]} 33. b5 {[%emt 0:00:43]} cxb5 {[%emt 0:01:10]} 34. Ne3 {[%emt 0:02:34]} Be6 {[%emt 0:03:40]} 35. Nxd5+ {[%emt 0:01:33]} Kf7 {[%emt 0:03:08]} 36. Kc3 {[%emt 0:00:12]} Rc8 {[%emt 0:08:04]} 37. Ne3 {[%emt 0:00:01]} b6 {[%emt 0:09:52]} 38. Kd4 {[%emt 0:00:43]} Rd8+ {[%emt 0:00:51]} 39. Kc3 {[%emt 0:00:09]} Rc8 {[%emt 0:01:12]} 40. Kd4 {[%emt 0:00:02]} Rd8+ {[%emt 0:01:55]} 1/2-1/2